[Event "FIDE CB Open 2022"]
[Site "Ceske Budejovice"]
[Date "2022.07.05"]
[Round "5.10"]
[White "Kula, Dominik"]
[Black "Zima, Jan"]
[Result "0-1"]
[ECO "B99"]
[WhiteElo "2229"]
[BlackElo "2134"]
[Annotator "TA"]
[PlyCount "100"]
[EventDate "2022.07.01"]
[EventType "swiss"]
[EventCountry "CZE"]
[SourceTitle "playchess.com"]
[Source "ChessBase"]
[SourceQuality "1"]
[TimeControl "40/5400+30:1800+30"]

{[%evp 20,100,8,0,4,0,9,-33,-22,-32,-18,-19,-26,-18,-8,-19,-12,-224,-235,-232,-223,-248,-249,-258,-230,-370,-364,-415,-249,-248,-189,-538,-536,-778,-746,-29989,-29990,-29990,-29976,-29985,-242,-238,-231,-492,-494,-482,-479,-660,-437,-475,-417,-399,-259,-656,-650,-774,-474,-457,0,-776,-766,-733,-627,-708,-620,-29964,-29959,-29958,-29957,-29952,0,-29938,-12838,-29953,-29947,-29945,-29946,-29939,-2158,-29953,-5077,-4133,-455]} 1. e4 {[%emt 0:00:04]} c5 {[%emt 0:00:08]} 2. Nf3 {[%emt 0:00:04]} d6 {[%emt 0:00:05]} 3. d4 {[%emt 0:00:04]} cxd4 {[%emt 0:00:04]} 4. Nxd4 {[%emt 0:00:04]} Nf6 {[%emt 0:00:07]} 5. Nc3 {[%emt 0:00:04]} a6 {[%emt 0:00:13]} 6. Bg5 {[%emt 0:00:44]} e6 {[%emt 0:00:30]} 7. f4 {[%emt 0:00:12]} h6 {[%emt 0:00:27]} 8. Bh4 {[%emt 0:01:02]} Be7 {[%emt 0:00:16]} 9. Qf3 {[%emt 0:01:10]} Nbd7 {[%emt 0:01:44]} 10. O-O-O {[%emt 0:03:10]} Qc7 {[%emt 0:00:26] 10...g5 is the fancy move.} 11. g4 {[%emt 0:06:03]} b5 {[%emt 0:05:15] B99: Sicilian Najdorf: 6 Bg5 e6 7 f4 Be7 8 Qf3 Qc7 9 0-0-0 Nbd7.} (11... Nxe4 12. Bxe7 Nxc3 13. Nxe6 Nxa2+ 14. Kb1 Nc3+ 15. bxc3 $16 (15. Qxc3 Qxc3 16. bxc3 Kxe7 $11)) 12. Bxf6 {[%emt 0:03:01]} Nxf6 {[%emt 0:00:35]} 13. g5 {[%emt 0:01:33]} hxg5 {[%emt 0:00:28] Black is slightly better.} 14. fxg5 {[%emt 0:00:08]} Nd7 {[%emt 0:00:09] White must now prevent ...b4.} 15. g6 {[%emt 0:03:12]} Bg5+ {[%emt 0:00:11]} 16. Kb1 {[%emt 0:00:23]} Ne5 {[%emt 0:00:06]} 17. Qg2 {[%emt 0:04:19]} Bf6 {[%emt 0:02:28] [#]} 18. Bxb5+ $146 {[%emt 0:08:15] Black converts the advantage convincingly.} ({Predecessor:} 18. gxf7+ Qxf7 19. Be2 Bb7 20. Nb3 Rd8 21. Rhg1 Rh4 22. Qf2 b4 23. Na4 Rxe4 24. Nd2 {0-1 (41) Pulpan,J (2089)-Pycha,P (1994) Czech Republic 2014}) 18... axb5 $19 {[%emt 0:02:49]} 19. Ndxb5 {[%emt 0:00:41]} Qb6 {[%emt 0:05:56]} 20. Rxd6 {[%emt 0:05:46]} ({Reject} 20. Nxd6+ Ke7 21. gxf7 Rd8) 20... Qc5 {[%emt 0:03:10]} 21. gxf7+ {[%emt 0:13:19]} Kxf7 {[%emt 0:02:46] And now ...Bd7 would win.} ({Weaker is} 21... Nxf7 22. e5 Bxe5 23. Rc6 $11) 22. a3 {[%emt 0:07:14]} (22. a4 $142) 22... Rb8 {[%emt 0:08:45]} 23. a4 {[%emt 0:10:17]} Bd7 {[%emt 0:26:17][%cal Rd7b5]} 24. Rhd1 {[%emt 0:01:42]} Bc6 {[%emt 0:12:14] Hoping for ...Nc4.} 25. Qe2 {[%emt 0:07:36]} (25. Qg3 {is a better chance.}) 25... Rh3 {[%emt 0:05:52]} 26. Ka2 {[%emt 0:03:22] [#]} Rxc3 $1 {[%emt 0:17:09][%mdl 512]} 27. bxc3 {[%emt 0:05:47]} (27. Rxc6 Nxc6) 27... Bxb5 {[%emt 0:01:29]} 28. axb5 {[%emt 0:01:18]} Rxb5 {[%emt 0:01:27]} 29. Ra6 {[%emt 0:00:05]} Ra5+ $2 {[%emt 0:03:02]} (29... Nc4 {mates} 30. Rd7+ Ke8 31. Rb7 Rxb7 32. Ra8+ Ke7 33. Qd1 Rb2+ 34. Ka1 {[#]} Rb8 $3 {[%mdl 512]} 35. Ra6 Bxc3+ 36. Ka2 Rb2+ 37. Ka1 Rb6+ 38. Ka2 Rxa6+ 39. Kb3 Qb4#) 30. Rxa5 {[%emt 0:02:05]} Qxa5+ {[%emt 0:00:01]} 31. Kb1 $2 {[%emt 0:01:40]} (31. Kb3) 31... Qxc3 {[%emt 0:00:38][%cal Oe5d3] ( -> ...Nd3!)} ({Not} 31... Qb6+ $2 32. Ka2 $19) 32. Qd2 {[%emt 0:00:51] Inhibits Nd3.} Qc5 {[%emt 0:00:54] ...Qb6+ is the strong threat.} 33. c3 {[%emt 0:00:37]} Qc4 {[%emt 0:00:40] Strongly threatening ...Qb3+.} 34. Qc2 {[%emt 0:01:09] Against Qb3+} Nc6 {[%emt 0:00:24] Prevents Rd4.} 35. Rd7+ {[%emt 0:00:25]} Ke8 {[%emt 0:00:22]} 36. Rd3 {[%emt 0:02:47]} (36. Rb7) 36... Qb5+ {[%emt 0:00:17]} 37. Ka2 {[%emt 0:01:34]} Qa5+ {[%emt 0:00:05]} 38. Kb3 {[%emt 0:00:49]} Qb5+ {[%emt 0:00:51]} (38... Qb6+ $142 39. Ka2 Qa6+ 40. Kb3 Na5+ 41. Kb2 Nc4+ 42. Kb3 Qb5+ 43. Ka2 Qa6+ 44. Kb3 Na5+ 45. Kb2 Ke7) 39. Ka2 {[%emt 0:00:02] [#]} Bxc3 {[%emt 0:01:00][%mdl 512]} 40. Qxc3 {[%emt 0:01:50][%mdl 4096] Endgame KQR-KQN} Nb4+ {[%emt 0:00:09]} 41. Ka3 {[%emt 0:31:07] White wants to mate with Qc8+.} Nxd3 {[%emt 0:30:34]} 42. Qxg7 {[%emt 0:00:06]} Qb4+ {[%emt 0:00:52]} 43. Ka2 {[%emt 0:00:05]} Qc4+ {[%emt 0:00:00]} 44. Ka3 {[%emt 0:00:00]} Qb4+ {[%emt 0:00:00]} 45. Ka2 {[%emt 0:00:00]} Qxe4 {[%emt 0:00:00]} (45... Qa4+ $142 46. Kb1 Qxe4 47. Qc3 Nb4+ 48. Kb2 Nd5 49. Qc8+ Kf7 50. Qd7+ Ne7 51. Qc7 Qb4+ 52. Kc1 Qe4 53. Kb2 Qb4+ 54. Ka1 Qd4+ 55. Ka2 Kf6 56. Qb8 Qc4+ 57. Qb3 Qf4 58. Qc3+ Kf7 59. Qc2 Nf5 60. Kb1 Nd4 61. Qh7+ Kf6 62. h4 e5 63. h5 Qf1+ 64. Kb2 Qb5+ 65. Kc3 Qc6+ 66. Kd2 Kg5 67. Qe7+ Kg4 68. Qh7 Nf5 69. Qg8+ Kf4 70. Qb8 Qc5 71. h6 Nxh6 72. Qh8 Ng4 73. Qh5 Qd4+ 74. Kc2 Qc4+ 75. Kb1 e4 76. Qe8 e3 77. Qb8+ Kf3 78. Qf8+ Kg2 79. Qa8+ Kf2 80. Qf8+ Kg1 81. Qf3 e2 82. Qg3+ Kf1 83. Qh3+ Kf2 84. Qh4+ Kg2 85. Ka1 Qb4 86. Ka2 Kf3 87. Qh1+ Kf2 88. Qd5 Qf4 89. Qh1 Qc4+ 90. Kb2 e1=Q 91. Qh4+ Ke2 92. Qxe1+ Kxe1 93. Kb1 Ne3 94. Kb2 Nd1+ 95. Ka1 Qd4+ 96. Kb1 Qb2#) 46. h4 {[%emt 0:00:00]} Nb4+ {[%emt 0:00:00]} 47. Kb3 {[%emt 0:00:00]} Nd5 {[%emt 0:00:00]} 48. Qh8+ {[%emt 0:00:00]} Kf7 {[%emt 0:00:00]} (48... Kd7 $142 49. Kb2 Qg2+ 50. Kc1 Qf1+ 51. Kb2 Qg2+ 52. Kc1 Qh1+ 53. Kb2 Qh2+ 54. Kb3 Qg3+ 55. Kb2 Qf2+ 56. Kb3 Qe3+ 57. Ka2 Qe2+ 58. Kb3 Qe4 59. Kb2 Qe2+ 60. Kb3 Qd3+ 61. Kb2 Qd2+ 62. Kb3 Qe3+ 63. Kc2 Qf2+ 64. Kb3 Qg3+ 65. Kb2 Qf2+ 66. Kb3) 49. h5 {[%emt 0:00:00]} Nf6 {[%emt 0:00:00]} (49... Qb1+ $142 50. Qb2 Qd1+ 51. Kc4 Qxh5 52. Qb7+ Kg6 53. Qb1+ Kf6 54. Qb2+ Qe5 55. Qf2+ Nf4 56. Qh4+ Kf5 57. Qd8 Qd5+ 58. Qxd5+ Nxd5 59. Kd4 e5+ 60. Kxd5 e4 61. Kd4 Kf4 62. Kc4 e3 63. Kd3 Kf3 64. Kc3 e2 65. Kd2 Kf2 66. Kc3 e1=Q+ 67. Kc4 Qa5 68. Kd4 Kf3 69. Kc4 Ke4 70. Kb3 Kd3 71. Kb2 Qb4+ 72. Kc1 Qb8 73. Kd1 Qb1#) 50. h6 {[%emt 0:00:00]} Qh7 {[%emt 0:00:00] Weighted Error Value: White=1.07/Black=0.88} (50... Qd5+ $142 51. Kb4 Qb7+ 52. Kc3 Qc7+ 53. Kd2 Qh2+ 54. Kd3 Qg3+ 55. Kc4 e5) 0-1

[Event "FIDE CB Open 2022"]
[Site "Ceske Budejovice"]
[Date "2022.07.05"]
[Round "5.11"]
[White "Valantiejus, Vaidotas"]
[Black "Lacina, Adolf"]
[Result "1-0"]
[ECO "C03"]
[WhiteElo "2062"]
[BlackElo "2225"]
[Annotator "TA"]
[PlyCount "71"]
[EventDate "2022.07.01"]
[EventType "swiss"]
[EventCountry "CZE"]
[SourceTitle "playchess.com"]
[Source "ChessBase"]
[SourceQuality "1"]
[TimeControl "40/5400+30:1800+30"]

{[%evp 11,71,8,12,16,16,14,9,6,15,20,30,29,55,33,66,37,46,27,25,30,75,12,14,-22,21,-5,-4,-4,-6,-7,-5,-33,25,-43,43,39,13,36,64,69,418,324,364,95,478,460,350,92,441,439,471,465,444,406,1728,1588,1527,1518,1352,373,29986,29987]} 1. e4 {[%emt 0:00:10][%cal Be2e4,Be4e5][%mdl 32]} e6 {[%emt 0:00:19]} 2. d4 {[%emt 0:00:06]} d5 {[%emt 0:00:17]} 3. Nd2 {[%emt 0:00:18]} Be7 {[%emt 0:00:32]} 4. Ngf3 {[%emt 0:00:20]} Nf6 {[%emt 0:00:21]} 5. e5 {[%emt 0:00:14]} Nfd7 {[%emt 0:00:07]} 6. Bd3 {[%emt 0:00:18]} c5 {[%emt 0:00:35]} 7. c3 {[%emt 0:00:05] C03: French Tarrasch: Unusual Black 3rd moves.} b6 {[%emt 0:01:24]} 8. O-O {[%emt 0:00:25][%cal Od2c4]} Ba6 {[%emt 0:01:59]} 9. Ne1 {[%emt 0:00:58] The position is equal.} O-O {[%emt 0:02:55]} 10. Qg4 {[%emt 0:06:03]} Qc8 {[%emt 0:17:50]} 11. Ndf3 {[%emt 0:03:04] And now Bh6 would win.} f5 {[%emt 0:01:02] [#]} 12. Qh3 $146 {[%emt 0:09:43]} ({Predecessor:} 12. Qg3 Nc6 13. Bg5 Bxg5 14. Nxg5 Re8 15. Rc1 h6 16. Nh3 Bxd3 17. Qxd3 Re7 18. Nf4 {½-½ (57) Ragger,M (2669)-Allahverdiyev,A (2407) Budva 2019}) 12... Qd8 {[%emt 0:07:45]} 13. b3 {[%emt 0:12:17]} Rf7 {[%emt 0:06:15]} 14. Kh1 {[%emt 0:27:06]} Nf8 {[%emt 0:03:19]} 15. Rg1 {[%emt 0:02:49]} g5 {[%emt 0:03:47]} 16. g4 {[%emt 0:02:15] White is more active.} (16. Qh5 $16) 16... f4 {[%emt 0:01:09]} 17. Bc2 {[%emt 0:02:50]} Qc7 {[%emt 0:03:28]} 18. Ba3 {[%emt 0:01:24]} Nc6 {[%emt 0:05:55]} 19. Rc1 {[%emt 0:00:40]} Rc8 {[%emt 0:00:58]} 20. Rd1 {[%emt 0:06:22]} Rg7 {[%emt 0:03:35]} 21. Bb1 {[%emt 0:00:42]} Na5 {[%emt 0:09:02]} (21... Qb7 $15) 22. Nd3 {[%emt 0:01:55]} (22. Bb2 $11) 22... cxd4 {[%emt 0:04:02]} (22... c4 $15 23. Bxe7 (23. Nb4 Bb5 $17) 23... Qxe7) 23. Bxe7 $14 {[%emt 0:00:06]} Qxe7 {[%emt 0:00:07]} 24. cxd4 {[%emt 0:00:05]} Rc3 {[%emt 0:00:21]} 25. Qf1 $1 {[%emt 0:02:35][%cal Oh2h4]} h5 $2 {[%emt 0:04:11][%mdl 8192] [#]} ({Black should play} 25... Rc7 $14) 26. Qe1 {[%emt 0:01:34]} Rc7 {[%emt 0:01:31]} 27. Rc1 $2 {[%emt 0:01:58]} (27. gxh5 $18 {is the precise move to win.} Kh8 28. Rg4) 27... Bb5 $2 {[%emt 0:02:55][%mdl 8192]} (27... Rxc1 $16 28. Qxc1 h4) 28. Rxc7 $18 {[%emt 0:04:00]} Qxc7 {[%emt 0:00:06]} 29. h3 $2 {[%emt 0:00:44]} (29. gxh5 $18 Qf7 30. Nxg5 Qxh5 31. Nxf4) 29... Be8 $2 {[%emt 0:02:51][%mdl 8192]} (29... Qf7 $16 {is tougher.}) 30. gxh5 {[%emt 0:04:55]} Bxh5 {[%emt 0:00:41]} 31. Nxg5 {[%emt 0:00:25]} Qe7 {[%emt 0:02:21]} 32. Nxf4 {[%emt 0:00:45][%cal Bd3f4,Bf4h5,Bh5f6][%mdl 32]} Rxg5 {[%emt 0:01:13]} (32... Be8 $142 33. h4 Nc6) 33. Nxh5 {[%emt 0:00:06] [#] White threatens Nf6+ and mate.} Kh8 {[%emt 0:00:35]} 34. Nf6 {[%emt 0:00:48]} Qg7 {[%emt 0:01:05]} 35. Rg4 $2 {[%emt 0:03:18]} (35. Rxg5 {Intending Qg1 and mate.} Qxg5 36. Qc3) 35... Qh6 $2 {[%emt 0:01:13]} (35... Rxg4 $18 36. hxg4 Nd7 37. Nxd7 Qxd7) 36. Qe3 {[%emt 0:00:29] Weighted Error Value: White=0.71/Black=1.09} 1-0

[Event "FIDE CB Open 2022"]
[Site "Ceske Budejovice"]
[Date "2022.07.05"]
[Round "5.12"]
[White "Cuhra, Martin"]
[Black "Puncochar, Jiri"]
[Result "0-1"]
[ECO "C51"]
[WhiteElo "2225"]
[BlackElo "2020"]
[Annotator "TA"]
[PlyCount "120"]
[EventDate "2022.07.01"]
[EventType "swiss"]
[EventCountry "CZE"]
[SourceTitle "playchess.com"]
[Source "ChessBase"]
[SourceQuality "1"]
[TimeControl "40/5400+30:1800+30"]

{[%evp 12,120,5,0,0,-27,0,-12,-6,-30,-27,-20,-8,-36,-14,-16,-12,-6,-5,-18,-16,-12,-8,0,43,23,27,26,20,-3,-26,-22,41,17,12,8,11,5,25,0,0,0,4,1,0,0,3,-102,-106,-103,-72,-164,-25,-60,-68,-71,-71,-66,-20,-66,-31,-29,-35,-58,-53,-92,-2,-22,0,-7,2,0,12,0,0,0,0,-83,50,-8,-8,-89,-67,-89,-85,-83,0,-431,-458,-523,-520,-596,-477,-631,-594,-960,-957,-990,-980,-1598,-1551,-1536,-1525,-1434,-1446,-1397,-1382,-1318,-1208,-1029,-983]} 1. e4 {[%emt 0:00:05]} e5 {[%emt 0:00:07]} 2. Nf3 {[%emt 0:00:06]} Nc6 {[%emt 0:00:05]} 3. Bc4 {[%emt 0:00:11]} Bc5 {[%emt 0:00:07]} 4. b4 {[%emt 0:00:50]} Bxb4 {[%emt 0:00:28]} 5. c3 {[%emt 0:00:18]} Be7 {[%emt 0:00:46]} 6. d4 {[%emt 0:00:27]} Na5 {[%emt 0:00:11]} 7. Bd3 {[%emt 0:01:21]} d6 {[%emt 0:00:44] C51: Evans Gambit: Declined and Accepted without 5...Ba5.} 8. O-O {[%emt 0:03:53]} Nf6 {[%emt 0:03:46]} 9. Qa4+ {[%emt 0:03:44]} c6 {[%emt 0:00:13] The position is equal.} 10. Ba3 {[%emt 0:01:27]} b5 {[%emt 0:13:41]} 11. Qc2 {[%emt 0:04:24] [#]} Qc7 $146 {[%emt 0:01:56]} ({Predecessor:} 11... O-O 12. Bxd6 Bxd6 13. dxe5 Bxe5 14. Nxe5 Qe7 15. Nf3 Nc4 16. Bxc4 bxc4 17. Nbd2 Bg4 {½-½ (33) Noetzel,F (2076)-Sappok,M (1971) Berlin 2013}) 12. Bb4 {[%emt 0:08:24]} O-O {[%emt 0:10:26]} 13. a4 {[%emt 0:09:48]} bxa4 {[%emt 0:12:09]} 14. Qxa4 {[%emt 0:05:23]} Nb7 {[%emt 0:01:07]} 15. Nbd2 {[%emt 0:22:41]} c5 {[%emt 0:07:15]} 16. Ba3 {[%emt 0:01:34]} Nd7 {[%emt 0:04:16]} 17. Nc4 {[%emt 0:07:04]} Bf6 {[%emt 0:10:51][%cal Re5d4]} 18. Rfc1 {[%emt 0:02:56]} Nb6 {[%emt 0:02:02]} 19. Nxb6 {[%emt 0:00:48]} Qxb6 {[%emt 0:00:03]} 20. Rab1 {[%emt 0:01:26]} Qc7 {[%emt 0:00:45]} 21. Bc4 {[%emt 0:04:46]} a5 {[%emt 0:05:10]} (21... Bd7 $11 22. Qc2 Rfc8) 22. Bd5 $14 {[%emt 0:04:06][%mdl 1024] White has compensation.} Ra7 {[%emt 0:00:20]} 23. Qb5 {[%emt 0:03:16]} a4 {[%emt 0:12:23]} 24. h3 {[%emt 0:02:53]} Be7 {[%emt 0:03:38]} 25. Qb6 {[%emt 0:04:53]} Qxb6 {[%emt 0:02:23]} 26. Rxb6 {[%emt 0:00:02]} exd4 {[%emt 0:00:24]} 27. cxd4 {[%emt 0:00:41]} Nd8 {[%emt 0:03:16]} 28. e5 {[%emt 0:02:07]} dxe5 {[%emt 0:00:37]} 29. dxe5 {[%emt 0:01:40]} (29. Bxc5 Be6 30. Be4 exd4 31. Bxe7 (31. Bxd4 Ra5 $17) (31. Nxd4 $2 Bxc5 32. Rxc5 a3 $17) 31... Rxe7 32. Nxd4 Bxh3 $1 $17) (29. dxc5 $11 {keeps the balance.} Be6 30. Bxe6 Nxe6 31. Nxe5) 29... Be6 {[%emt 0:01:06]} 30. Be4 {[%emt 0:00:14]} Bb3 {[%emt 0:03:13]} 31. Nd2 {[%emt 0:00:32]} (31. Bxc5 $17 Rc7 32. Be3 Rxc1+ 33. Bxc1) 31... c4 {[%emt 0:00:21]} (31... Bg5 $19 32. Nxb3 axb3) 32. Nxc4 {[%emt 0:01:03]} Bxa3 {[%emt 0:01:13]} 33. Nxa3 {[%emt 0:00:02]} Ne6 {[%emt 0:00:36]} 34. g3 {[%emt 0:01:08]} g6 {[%emt 0:00:12]} (34... Ra5 $15 {deserves consideration.} 35. Rb5 Rxb5 36. Nxb5 Rb8) 35. h4 {[%emt 0:00:37]} (35. f4 $1 $11) 35... Nd4 {[%emt 0:00:54]} 36. Kg2 {[%emt 0:00:28]} Rd8 {[%emt 0:00:49]} 37. h5 {[%emt 0:00:44]} Kg7 {[%emt 0:00:07]} ({But not} 37... gxh5 38. Rh1 $11) 38. Rh1 {[%emt 0:01:00]} Ne6 {[%emt 0:01:02]} (38... Rc7 $17 39. h6+ Kf8) 39. h6+ $11 {[%emt 0:00:19]} Kg8 {[%emt 0:00:04]} (39... Kf8 $5 {[%cal Re6c5]}) 40. Rc1 {[%emt 0:00:43] Inhibits Nc5.} Ng5 {[%emt 0:00:21]} 41. Bc6 {[%emt 0:04:00]} Kf8 {[%emt 0:07:41]} 42. f4 {[%emt 0:02:41]} Ne6 {[%emt 0:00:07]} 43. Nb5 {[%emt 0:03:18]} Ra5 {[%emt 0:00:52]} 44. Kf2 {[%emt 0:13:20] [#]} (44. Ra1 $11) 44... Kg8 {[%emt 0:05:45]} ({Don't take} 44... Rd2+ 45. Ke3 Rd8 46. Ra1 $16 (46. Nd6 Nc5 $14)) (44... a3 $1 $17 {...a2 is the strong threat.} 45. Nd6 Nd4) 45. Ke3 {[%emt 0:03:01]} (45. Ra1 $14) 45... a3 {[%emt 0:06:43][%cal Ba4a3,Ba3a2][%mdl 32]} 46. Ra1 {[%emt 0:00:43]} (46. Nd6 $11 Nc5 47. Nb7 Nxb7 48. Rxb3) 46... a2 $17 {[%emt 0:00:32] White must now prevent ...Rd1.} 47. Nd6 {[%emt 0:00:32]} Ra3 {[%emt 0:00:16][%cal Of7f6]} 48. Kd2 {[%emt 0:04:24]} Nd4 {[%emt 0:01:44]} ({Better is} 48... Bc4 $17 {aiming for ...Nc5.} 49. Kc2 Nd4+ 50. Kb2 Rb3+ 51. Rxb3 Bxb3) 49. Be4 $2 {[%emt 0:01:17][%mdl 8192]} (49. Kc3 $11 Nxc6 50. Rxb3) 49... Be6 $19 {[%emt 0:00:48] Black is clearly winning.} 50. Bc2 {[%emt 0:01:24]} Rxg3 {[%emt 0:00:32] And now ...Rg2+ would win.} 51. Bd1 {[%emt 0:00:14]} Rh3 {[%emt 0:00:49]} 52. Ra6 {[%emt 0:02:13]} Rxh6 {[%emt 0:00:55]} 53. Ke3 {[%emt 0:00:26]} Nf5+ {[%emt 0:01:44]} 54. Nxf5 {[%emt 0:00:11]} Bxf5 {[%emt 0:00:22]} 55. R6xa2 {[%emt 0:01:21]} Rd3+ {[%emt 0:00:33]} 56. Ke2 {[%emt 0:00:41]} Rh2+ {[%emt 0:01:12]} 57. Ke1 {[%emt 0:00:08]} Rh1+ {[%emt 0:00:13]} 58. Ke2 {[%emt 0:00:12] [#]} Rdxd1 $1 {[%emt 0:00:24][%mdl 512]} 59. Rxd1 {[%emt 0:00:08]} Rh2+ {[%emt 0:00:21]} 60. Ke3 {[%emt 0:00:18]} Rxa2 {[%emt 0:00:06] Weighted Error Value: White=0.52/Black=0.21 (precise)} 0-1

[Event "FIDE CB Open 2022"]
[Site "Ceske Budejovice"]
[Date "2022.07.05"]
[Round "5.13"]
[White "Koch-Muller, Oscar"]
[Black "Havelka, Josef"]
[Result "0-1"]
[ECO "E90"]
[WhiteElo "2115"]
[BlackElo "2396"]
[Annotator "TA"]
[PlyCount "82"]
[EventDate "2022.07.01"]
[EventType "swiss"]
[EventCountry "CZE"]
[SourceTitle "playchess.com"]
[Source "ChessBase"]
[SourceQuality "1"]
[TimeControl "40/5400+30:1800+30"]

{[%evp 17,82,38,54,22,19,0,0,0,0,0,0,0,0,-37,-37,-33,-49,-98,-109,-112,-59,-54,-55,-61,-59,-61,-59,-63,-63,-64,-31,-23,-13,-13,-14,-14,-15,-15,-15,-15,-15,-16,-16,-17,-11,-76,-81,-113,-98,-110,-73,-90,-70,-91,0,-122,-127,-118,-120,-476,-466,-467,-467,-868,-830,-809,-800]} 1. d4 {[%emt 0:00:03] Knaak,R} Nf6 {[%emt 0:01:13]} 2. c4 {[%emt 0:00:05]} g6 {[%emt 0:00:15]} 3. Nc3 {[%emt 0:00:04]} Bg7 {[%emt 0:00:05]} 4. e4 {[%emt 0:00:04]} d6 {[%emt 0:00:25]} 5. h3 {[%emt 0:00:11]} O-O {[%emt 0:00:35]} 6. Bg5 {[%emt 0:00:07]} Na6 {[%emt 0:00:47]} 7. Nf3 {[%emt 0:05:31]} e5 {[%emt 0:02:08]} 8. d5 {[%emt 0:08:19]} Qe8 {[%emt 0:10:10]} 9. g4 {[%emt 0:15:43]} Nd7 {[%emt 0:04:03][%cal Bf6d7,Bd7c5,Bc5a4,Ba4c3][%mdl 32]} 10. Qd2 {[%emt 0:04:54] E90: King's Indian: Classical: Early deviations and 6 h3.} Ndc5 {[%emt 0:11:18] [#]} 11. Bh6 $146 {[%emt 0:03:50]} ({Predecessor:} 11. O-O-O Bd7 12. Be3 f5 13. gxf5 gxf5 14. exf5 Bxf5 15. Rg1 Kh8 16. Nh4 Ne4 17. Nxe4 Bxe4 {½-½ (50) San Segundo Carrillo,P (2470)-Illescas Cordoba,M (2590) Madrid 1994 CBM 041 [Knaak,R]}) 11... Bxh6 {[%emt 0:07:24]} 12. Qxh6 {[%emt 0:00:13] [#] Ng5 would kill now. The position is equal.} f6 {[%emt 0:03:29] Against Ng5} 13. Be2 {[%emt 0:03:53]} Nb4 {[%emt 0:06:40] Hoping for ...Nc2+.} 14. O-O-O {[%emt 0:03:00] Against Nc2} Na4 {[%emt 0:14:38]} 15. Kb1 {[%emt 0:12:11]} Nxc3+ $1 {[%emt 0:02:33]} 16. bxc3 {[%emt 0:00:05]} Na6 {[%emt 0:00:04]} 17. Nh4 {[%emt 0:05:12]} (17. Nd2 $15) 17... Nc5 {[%emt 0:03:08]} 18. f3 {[%emt 0:01:40]} a6 {[%emt 0:04:25]} (18... b5 $17 {...bxc4 is the strong threat.} 19. cxb5 a6) 19. Ka1 $15 {[%emt 0:05:57]} b5 {[%emt 0:03:43] And now ...bxc4 would win.} 20. Rb1 {[%emt 0:02:05]} Bd7 {[%emt 0:00:18]} 21. Rhg1 {[%emt 0:07:36]} bxc4 {[%emt 0:04:34]} 22. Nf5 {[%emt 0:00:16][%csl Gf5][%cal Rh6g7,Bh4f5,Bf5e3,Be3c4][%mdl 32] [#]} Rf7 {[%emt 0:02:13] Against Qg7+} 23. Ne3 {[%emt 0:01:15]} Bb5 {[%emt 0:06:48]} 24. Bxc4 {[%emt 0:04:04]} Bxc4 {[%emt 0:02:55]} 25. Nxc4 {[%emt 0:00:04]} Qa4 {[%emt 0:01:36]} 26. Rb4 {[%emt 0:00:31]} Qc2 {[%emt 0:00:08]} 27. Qd2 {[%emt 0:03:35]} Qd3 {[%emt 0:01:02]} 28. Qxd3 {[%emt 0:02:02]} (28. Qe3 {with more complications.} Kg7 29. h4 Qxe3 30. Nxe3 Rff8 31. Kb1) 28... Nxd3 {[%emt 0:00:04]} 29. Rb7 {[%emt 0:02:14]} Nc5 {[%emt 0:00:34]} 30. Rbb1 {[%emt 0:03:16]} Kh8 {[%emt 0:02:03]} 31. Na5 {[%emt 0:01:20]} (31. Nd2 $11 {remains equal.}) 31... f5 $17 {[%emt 0:01:00]} 32. exf5 {[%emt 0:00:14]} gxf5 {[%emt 0:00:04]} 33. g5 {[%emt 0:02:15]} f4 {[%emt 0:01:52]} 34. Nc6 {[%emt 0:03:08]} e4 {[%emt 0:00:51]} 35. Nd4 {[%emt 0:00:37]} e3 {[%emt 0:01:38]} (35... Re8 $17 36. Rbf1 Re5) 36. g6 {[%emt 0:01:06]} (36. Kb2 $11) 36... hxg6 {[%emt 0:00:19]} 37. Rxg6 {[%emt 0:00:01]} Rg8 {[%emt 0:01:40]} 38. Rbg1 {[%emt 0:01:18][%mdl 8192] White does not recover from this.} (38. Rxg8+ $17 Kxg8 39. Rg1+ Kh8 40. Ne2) 38... Rxg6 $19 {[%emt 0:01:03] Black is clearly winning.} 39. Rxg6 {[%emt 0:00:30]} Rh7 {[%emt 0:01:01]} 40. Ne6 {[%emt 0:01:28]} (40. Rg2 $142 Rxh3 41. Kb2) 40... e2 {[%emt 0:00:58]} 41. Rg1 {[%emt 0:05:47]} Nd3 {[%emt 0:00:39] Weighted Error Value: White=0.56/Black=0.08 (flawless)} 0-1